[Event "9th Floripa Open 2023"]
[Site "Florianopolis"]
[Date "2023.01.27"]
[Round "7.1"]
[White "Matsuura, Everaldo"]
[Black "Pichot, Alan"]
[Result "0-1"]
[ECO "B90"]
[WhiteElo "2426"]
[BlackElo "2634"]
[Annotator "TA"]
[PlyCount "115"]
[EventDate "2023.01.23"]
[EventType "swiss"]
[EventCountry "BRA"]
[SourceTitle "playchess.com"]
[Source "ChessBase"]
[SourceQuality "1"]
[TimeControl "5400+30"]

{[%evp 15,115,12,15,11,22,-19,46,26,28,0,0,0,50,39,47,43,35,8,38,37,41,26,45,0,0,0,0,0,26,43,43,17,25,0,26,0,2,0,0,-14,0,-12,0,0,0,0,0,0,19,0,44,38,31,14,35,0,12,0,0,0,0,0,0,0,0,-74,0,0,0,-29,-41,-40,0,-26,-10,-43,-10,-58,0,-63,0,-82,-81,-110,-70,-78,-70,-75,-84,-92,-14,-129,-129,-129,-129,-129,-129,-129,-129,-129,-129,-228]} 1. e4 {[%emt 0:00:30]} c5 {[%emt 0:01:59]} 2. Nf3 {[%emt 0:00:25]} d6 {[%emt 0:00:47]} 3. d4 {[%emt 0:00:20]} cxd4 {[%emt 0:00:08]} 4. Nxd4 {[%emt 0:00:12]} Nf6 {[%emt 0:00:04]} 5. Nc3 {[%emt 0:00:18]} a6 {[%emt 0:00:19]} 6. Be3 {[%emt 0:00:29]} e5 {[%emt 0:02:03]} 7. Nb3 {[%emt 0:00:23]} Be6 {[%emt 0:00:18]} 8. Qd2 {[%emt 0:00:36]} Nbd7 {[%emt 0:00:24]} 9. O-O-O {[%emt 0:00:50] B90: Sicilian Najdorf: Unusual White 6th moves, 6 Be3 Ng4 and 6 Be3 e5.} b5 $1 {[%emt 0:01:05][%mdl 4] now scores much better than the old 9...Be7.} 10. f4 {[%emt 0:04:16]} Rc8 {[%emt 0:10:02]} (10... Be7 $11) 11. Kb1 {[%emt 0:01:39] White is slightly better.} Be7 {[%emt 0:04:40]} 12. f5 {[%emt 0:00:57]} Bc4 {[%emt 0:00:16]} 13. g4 {[%emt 0:05:29]} b4 {[%emt 0:04:20]} (13... Nxg4 $11 14. Rg1 Nxe3 15. Qxe3 Bxf1 16. Rdxf1 Rg8) 14. Bxc4 $14 {[%emt 0:08:50] [#]} bxc3 $146 {[%emt 0:03:39]} ({Predecessor:} 14... Rxc4 15. Nd5 h6 16. Qd3 Nxd5 17. Qxd5 Rc8 18. Rhg1 Qc7 19. Rg2 Nf6 20. Qd3 Qc6 {0-1 Martin Grillo,R (2282)-Panelo Munoz,M (2414) Barcelona Sants op 10th 2008 (6)}) 15. Qd3 {[%emt 0:03:49]} Nxg4 {[%emt 0:02:56]} 16. Bxa6 {[%emt 0:01:16] This pair of bishops is nice.} Rc7 {[%emt 0:01:33]} (16... Ra8 {is more complex.} 17. Bb5 cxb2 18. Rhg1 Nxe3 19. Qxe3 Kf8) 17. Rhg1 {[%emt 0:03:25]} Nxe3 {[%emt 0:05:13]} 18. Qxe3 {[%emt 0:00:15]} Kf8 {[%emt 0:01:00] Black is weak on the light squares} 19. Bb5 {[%emt 0:11:58]} (19. Qg3 g6 $11) (19. bxc3 {simplifies} Qa8 20. Bb5 Rg8 21. a4) 19... cxb2 {[%emt 0:10:18]} 20. f6 {[%emt 0:07:56]} Nxf6 {[%emt 0:10:53]} 21. Rxg7 $1 {[%emt 0:04:51][%mdl 64] [#] Decoy} Nh5 {[%emt 0:11:00]} (21... Kxg7 $2 22. Qg5+ Kf8 23. Qh6+ (23. Kxb2 $2 h6 $19) 23... Kg8 24. Rg1+ $18 (24. Kxb2 $2 Nxe4 25. Rg1+ Ng5 $19) (24. Kxb2 $2 Nxe4 25. Rg1+ Ng5 $19)) 22. Rgg1 {[%emt 0:11:49] White wants to mate with Qh6+.} Nf4 {[%emt 0:00:27]} 23. Kxb2 {[%emt 0:01:12]} (23. Nd4 {feels hotter.} Qc8 24. c4 exd4 25. Qxf4 Qe6 26. Rxd4 Rg8 27. Rxg8+ Kxg8 28. Rd5) 23... Bg5 {[%emt 0:14:54]} (23... Qc8 {keeps more tension.} 24. c4 h5 25. Nd4 Qh3) 24. Qf3 {[%emt 0:08:46]} (24. c4 {with more complications.} Rg8 25. c5 Ne6 26. Qf2) 24... h6 {[%emt 0:03:05]} 25. a4 {[%emt 0:02:15]} Qc8 {[%emt 0:00:39]} 26. c3 {[%emt 0:01:40]} Ke7 {[%emt 0:01:28]} 27. Rgf1 {[%emt 0:07:19]} Qe6 {[%emt 0:02:13]} 28. c4 {[%emt 0:01:59]} Rhc8 {[%emt 0:02:15]} 29. Rc1 {[%emt 0:00:42]} Qg6 {[%emt 0:02:07]} 30. Rc2 {[%emt 0:01:46]} Kf8 {[%emt 0:04:00][%cal Od6d5]} 31. Rd1 {[%emt 0:00:34]} Qe6 {[%emt 0:00:23]} 32. a5 {[%emt 0:00:58][%cal Ba4a5,Ba5a6][%mdl 32]} (32. Rcd2 $5 {[%cal Rd2d6]}) 32... Be7 {[%emt 0:01:05]} 33. a6 {[%emt 0:00:18]} Rb8 {[%emt 0:00:18]} 34. Qe3 {[%emt 0:03:44]} (34. Qg3 {is interesting.} Qc8 35. Rcd2 Rxc4 36. Bxc4 Qxc4 37. Rg1) 34... Qc8 {[%emt 0:00:04][%cal Ob8b5] [#] White must now prevent ...Rxb5!} 35. Rc3 {[%emt 0:01:43]} Bg5 {[%emt 0:00:26][%cal Of4d5] Threatens to win with ...Nd5!} 36. Qf3 {[%emt 0:00:52]} (36. Rxd6 $2 Nd5 $19) 36... Rb6 {[%emt 0:00:14]} 37. Ra1 {[%emt 0:00:18]} Ra7 {[%emt 0:00:25]} 38. Qf2 {[%emt 0:01:35]} Qc7 {[%emt 0:00:11]} 39. Kc2 {[%emt 0:00:47]} Bd8 {[%emt 0:00:45]} 40. Rd1 {[%emt 0:00:51]} (40. Kb2 $11) 40... Qb8 {[%emt 0:01:23]} ({Black should try} 40... Rbxa6 $17 {Hoping for ...Ra2+.} 41. Bxa6 Rxa6) 41. Ra1 $11 {[%emt 0:02:22]} Qa8 {[%emt 0:00:29]} 42. Nd2 {[%emt 0:00:39]} Ne6 {[%emt 0:00:16]} 43. Rd3 {[%emt 0:00:23]} Qc8 {[%emt 0:00:10]} 44. Kd1 {[%emt 0:00:35]} Nc5 {[%emt 0:00:27]} 45. Rf3 {[%emt 0:00:27]} Bg5 {[%emt 0:00:11]} (45... Qg4 $5 {[%cal Rc5e4]}) 46. Ra2 {[%emt 0:00:28]} (46. h3 $11 {is superior.}) 46... Qe6 {[%emt 0:00:34]} (46... Qg4 $15 47. Raa3 Qh5) 47. h4 {[%emt 0:00:25]} (47. Nb3 $11) 47... Bf4 {[%emt 0:00:36] Black is more active.} ({Black should play} 47... Bxd2 $15 48. Rxd2 Raxa6 49. Bxa6 Rb1+ 50. Kc2 Ra1) 48. Rxf4 {[%emt 0:00:32]} (48. Nb3 $11 {keeps the balance.}) 48... exf4 $17 {[%emt 0:00:03]} 49. Qxf4 {[%emt 0:00:11]} Ke7 {[%emt 0:01:38] aiming for ...Rxb5.} ({Of course not} 49... Nxa6 $6 50. Qe3 Qg4+ 51. Kc1 Qxh4 52. Ra4 $11 (52. Qxb6 Qe1+ {[%mdl 64] Deflection} 53. Kb2 Qxd2+ 54. Kb1 Qd3+ 55. Kb2 Qe2+ 56. Ka1 Qf1+ 57. Kb2 Qg2+ 58. Ka1 Qh1+ 59. Kb2 Qh2+ 60. Kb1 Qh1+ 61. Kb2 Qg2+ 62. Ka1 Qh1+ 63. Kb2 $11)) 50. Ra3 {[%emt 0:00:09]} Qf6 {[%emt 0:00:43] Chess con chili.} 51. Qxf6+ {[%emt 0:01:11]} Kxf6 {[%emt 0:00:01]} 52. Ke2 {[%emt 0:00:39]} Ke7 {[%emt 0:00:16]} ({Reject} 52... Nxa6 $6 53. Nf1 $11) (52... Ke5 $17) 53. Ke3 {[%emt 0:00:11]} (53. Nf1 $11) 53... Nxa6 {[%emt 0:01:01] Black is better.} 54. Nf3 {[%emt 0:00:19]} Ra8 {[%emt 0:00:22]} 55. Nd4 {[%emt 0:00:10]} Nc7 {[%emt 0:00:19]} 56. Nf5+ {[%emt 0:00:27]} Kf6 {[%emt 0:00:27]} 57. Rxa8 {[%emt 0:01:21]} Nxa8 {[%emt 0:00:02]} 58. Kf4 {[%emt 0:01:09] A cool game by Pichot.   Weighted Error Value: White=0.17 (very precise) /Black=0.17 (very precise)} (58. Nxh6 $17 {keeps fighting.} Nc7 59. Bd7) 0-1

[Event "9th Floripa Open 2023"]
[Site "Florianopolis"]
[Date "2023.01.27"]
[Round "7.2"]
[White "Di Berardino, Diego Rafael"]
[Black "Mareco, Sandro"]
[Result "1/2-1/2"]
[ECO "E49"]
[WhiteElo "2458"]
[BlackElo "2625"]
[Annotator "TA"]
[PlyCount "46"]
[EventDate "2023.01.23"]
[EventType "swiss"]
[EventCountry "BRA"]
[SourceTitle "playchess.com"]
[Source "ChessBase"]
[SourceQuality "1"]
[TimeControl "5400+30"]

{[%evp 13,46,8,24,-7,13,18,18,15,32,19,22,19,7,24,11,14,22,29,37,12,33,0,0,0,0,0,0,0,0,0,0,-10,8,12,35]} 1. d4 {[%emt 0:02:49]} Nf6 {[%emt 0:00:06]} 2. c4 {[%emt 0:00:05]} e6 {[%emt 0:00:03]} 3. Nc3 {[%emt 0:00:22]} Bb4 {[%emt 0:00:04]} 4. e3 {[%emt 0:00:13]} O-O {[%emt 0:00:12]} 5. Bd3 {[%emt 0:00:31]} d5 {[%emt 0:00:08]} 6. a3 {[%emt 0:00:22]} Bxc3+ {[%emt 0:02:19]} 7. bxc3 {[%emt 0:00:06]} c6 {[%emt 0:08:23][%cal Oe6e5]} 8. a4 {[%emt 0:02:06] [#] E49: Nimzo-Indian: Rubinstein: 5 Bd3 d5 6 a3 Bxc3+ 7 bxc3.} Qc7 $146 {[%emt 0:00:30]} ({Predecessor:} 8... b6 9. Ba3 Re8 10. Nf3 Ba6 11. cxd5 Bxd3 12. Qxd3 cxd5 13. c4 Nc6 14. O-O dxc4 15. Qxc4 Rc8 {½-½ Sarana,A (2666)-Cheparinov,I (2664) Wch Rapid Warsaw 2021 (4)}) 9. Nf3 {[%emt 0:04:57]} b6 {[%emt 0:00:22]} 10. Ba3 {[%emt 0:02:53]} Re8 {[%emt 0:00:06]} 11. O-O {[%emt 0:01:15]} Ba6 {[%emt 0:01:28]} 12. cxd5 {[%emt 0:06:12]} cxd5 {[%emt 0:00:05]} 13. Bxa6 {[%emt 0:01:01]} Nxa6 {[%emt 0:00:05]} 14. Qd3 {[%emt 0:00:15]} Qb7 {[%emt 0:21:39]} 15. Nd2 {[%emt 0:05:47]} e5 {[%emt 0:01:10]} 16. Rfb1 {[%emt 0:20:20]} Rac8 {[%emt 0:07:53]} 17. c4 {[%emt 0:19:36]} exd4 {[%emt 0:05:54] The position is equal.} 18. exd4 {[%emt 0:01:37][%cal Oc4c5]} Nc7 {[%emt 0:05:12]} 19. c5 {[%emt 0:02:03]} Qc6 {[%emt 0:01:16]} 20. cxb6 {[%emt 0:02:52]} axb6 {[%emt 0:00:08]} 21. Nf3 {[%emt 0:00:18]} Qxa4 {[%emt 0:03:26]} 22. Be7 {[%emt 0:06:57][%mdl 64] [#] Discovered Attack} Qc4 {[%emt 0:04:01]} (22... Qc6 $5 {[%cal Re8e7]} 23. Rc1 Qe6 24. Bxf6 Qxf6 $15) 23. Qf5 {[%emt 0:00:55]} Qc6 {[%emt 0:10:47] An uneventful encounter.   Weighted Error Value: White=0.06 (flawless) /Black=0.08 (flawless)} 1/2-1/2

[Event "9th Floripa Open 2023"]
[Site "Florianopolis"]
[Date "2023.01.27"]
[Round "7.3"]
[White "Fier, Alexandr"]
[Black "Cori T., Deysi"]
[Result "1-0"]
[ECO "C18"]
[WhiteElo "2602"]
[BlackElo "2356"]
[Annotator "TA"]
[PlyCount "84"]
[EventDate "2023.01.23"]
[EventType "swiss"]
[EventCountry "BRA"]
[SourceTitle "playchess.com"]
[Source "ChessBase"]
[SourceQuality "1"]
[TimeControl "5400+30"]

{[%evp 14,84,45,44,87,75,97,104,99,78,75,74,79,87,90,93,121,135,147,119,131,124,135,104,150,148,155,127,126,129,144,128,144,144,143,145,245,97,115,65,152,142,159,178,163,156,266,260,259,252,266,209,280,275,310,316,260,290,672,668,659,664,618,618,776,668,1162,1102,12836,12837,12835,12833,12835]} 1. e4 {[%emt 0:00:02]} e6 {[%emt 0:04:27]} 2. d4 {[%emt 0:00:07]} d5 {[%emt 0:00:02]} 3. Nc3 {[%emt 0:00:05]} Bb4 {[%emt 0:00:40]} 4. e5 {[%emt 0:00:06]} c5 {[%emt 0:00:03]} 5. a3 {[%emt 0:00:03]} Bxc3+ {[%emt 0:00:06]} 6. bxc3 {[%emt 0:00:04]} Qc7 {[%emt 0:00:08]} 7. Qg4 {[%emt 0:00:17]} f6 {[%emt 0:00:31] seems to push 7...f5 aside.} 8. Bb5+ {[%emt 0:02:50]} Nc6 {[%emt 0:01:11] C18: French: 3 Nc3 Bb4: Main line: 7 h4 and 7 Qg4.} 9. Nf3 {[%emt 0:01:56] [#]} (9. dxc5 $6 Qxe5+ 10. Ne2 Kf7 $11) (9. Bxc6+ {simplifies} bxc6 10. Nf3 cxd4 11. cxd4 Qf7 12. O-O) 9... h5 $146 {[%emt 0:10:09] Black is weak on the dark squares} ({Predecessor:} 9... Qf7 10. a4 Bd7 11. Ba3 c4 12. Qf4 Nge7 13. Bxe7 Qxe7 14. Bxc6 Bxc6 15. h4 a5 16. h5 {½-½ Preotu,R (2520)-Matsenko,S (2530) Texas Collegiate Superfinal 2018 (4.1)}) 10. Qg3 {[%emt 0:04:11] White is much more active.} cxd4 {[%emt 0:02:16] White is better.} 11. exf6 {[%emt 0:02:39]} (11. Nxd4 Qxe5+ 12. Qxe5 fxe5 13. Nxc6 Bd7 $11) 11... Qxg3 {[%emt 0:01:05]} 12. hxg3 {[%emt 0:00:19]} Nxf6 {[%emt 0:04:24]} 13. cxd4 {[%emt 0:00:08]} (13. Nxd4 Bd7 $11) 13... Bd7 {[%emt 0:00:12]} 14. Bd3 {[%emt 0:00:33]} O-O-O {[%emt 0:11:11]} 15. Bf4 {[%emt 0:01:52]} Ne4 {[%emt 0:04:43]} 16. Ne5 {[%emt 0:01:29]} Be8 {[%emt 0:06:56] Prevents Nf7.} 17. Nxc6 {[%emt 0:00:55]} Bxc6 {[%emt 0:00:11]} 18. Be5 {[%emt 0:00:04]} Rd7 {[%emt 0:01:33]} (18... Nf6 $142) 19. f3 $16 {[%emt 0:02:20]} Nd6 {[%emt 0:00:02]} 20. g4 {[%emt 0:09:49]} h4 {[%emt 0:02:15]} 21. Kf2 {[%emt 0:02:25]} Bb5 {[%emt 0:04:03]} 22. Rae1 {[%emt 0:06:40]} Bxd3 {[%emt 0:09:25]} 23. cxd3 {[%emt 0:00:03]} b6 {[%emt 0:00:03]} 24. a4 {[%emt 0:02:11]} Nb7 {[%emt 0:14:14]} (24... Kb7 $16 25. Re2 Rh6) 25. Bf4 {[%emt 0:00:19]} (25. Rc1+ $18 {has better winning chances.} Kd8 26. Rc6) 25... Nd8 {[%emt 0:00:12]} 26. Bg5 {[%emt 0:00:11]} (26. a5 $16) 26... Rc7 {[%emt 0:04:08]} ({Black should try} 26... Nc6 $1 $14) 27. Rxh4 {[%emt 0:01:03]} Rxh4 {[%emt 0:03:14]} 28. Bxh4 {[%emt 0:00:04][%mdl 4096] Endgame KRB-KRN} Rc2+ {[%emt 0:00:36]} 29. Kg3 {[%emt 0:00:05] Hoping for Bxd8.} Nc6 {[%emt 0:09:20]} (29... Rc6 $16 {was called for.} 30. Re5 Rc3) 30. Rxe6 $18 {[%emt 0:01:52]} Nxd4 {[%emt 0:00:02]} 31. Re8+ {[%emt 0:00:07]} Kb7 {[%emt 0:00:04]} 32. Kh3 {[%emt 0:01:10]} Re2 {[%emt 0:02:45]} 33. Rf8 {[%emt 0:04:39]} Ne6 {[%emt 0:02:07]} 34. Rf7+ {[%emt 0:00:19][%mdl 64] Deflection} Kc6 {[%emt 0:00:05] [#]} 35. f4 $1 {[%emt 0:01:33][%cal Bf3f4,Bf4f5,Bf5f6,Bf6f7][%mdl 32]} ({Don't take} 35. Rxa7 $6 Rd2 $16) 35... Kc5 $2 {[%emt 0:02:47]} (35... d4 36. Bg3 (36. Rxa7 Nxf4+ 37. Kg3 Nxd3 $17) 36... Re3) 36. f5 {[%emt 0:01:13] White is clearly winning.} ({Not} 36. Rxa7 Nxf4+ 37. Kg3 Ne6 $11) 36... Nf4+ {[%emt 0:00:04]} 37. Kg3 {[%emt 0:00:03]} Nxd3 {[%emt 0:00:42]} 38. Rxg7 {[%emt 0:00:04] f6 would be deadly.} Re3+ {[%emt 0:02:14]} 39. Kh2 {[%emt 0:00:04][%cal Of5f6] [#] aiming for f6!} d4 {[%emt 0:00:04]} 40. f6 {[%emt 0:00:30][%cal Of6f7] Black must now prevent f7!} Nf4 {[%emt 0:01:35]} 41. f7 {[%emt 0:56:36]} Ne6 {[%emt 0:00:20]} 42. Rg6 {[%emt 0:00:00]} Kd5 {[%emt 0:01:21] Weighted Error Value: White=0.13 (very precise) /Black=0.35} 1-0

[Event "9th Floripa Open 2023"]
[Site "Florianopolis"]
[Date "2023.01.27"]
[Round "7.4"]
[White "Flores Quillas, Diego Saul Rodri"]
[Black "Delgado Ramirez, Neuris"]
[Result "1/2-1/2"]
[ECO "B81"]
[WhiteElo "2321"]
[BlackElo "2562"]
[Annotator "TA"]
[PlyCount "71"]
[EventDate "2023.01.23"]
[EventType "swiss"]
[EventCountry "BRA"]
[SourceTitle "playchess.com"]
[Source "ChessBase"]
[SourceQuality "1"]
[TimeControl "5400+30"]

{[%evp 16,71,64,22,61,0,0,0,3,0,8,1,4,0,-15,-6,0,-62,-58,-161,-50,-61,-55,-56,-46,-48,-35,-51,0,0,0,0,0,-3,0,0,0,0,0,0,0,0,89,87,97,94,147,150,492,0,0,0,0,0,0,0,0,0]} 1. e4 {[%emt 0:13:32]} c5 {[%emt 0:00:09]} 2. Nf3 {[%emt 0:00:05]} d6 {[%emt 0:00:05]} 3. d4 {[%emt 0:00:05]} cxd4 {[%emt 0:00:06]} 4. Nxd4 {[%emt 0:00:03]} Nf6 {[%emt 0:00:09]} 5. Nc3 {[%emt 0:00:13]} a6 {[%emt 0:00:07]} 6. h3 {[%emt 0:00:03]} e6 {[%emt 0:02:19]} 7. g4 {[%emt 0:00:13]} h6 {[%emt 0:00:03]} 8. Bg2 {[%emt 0:00:30]} Nc6 {[%emt 0:00:24]} 9. Be3 {[%emt 0:03:16]} Bd7 {[%emt 0:02:28] B81: Sicilian Scheveningen: Keres Attack.} 10. Qe2 {[%emt 0:00:50]} (10. f4 $1 $14) 10... Nxd4 $11 {[%emt 0:01:01]} 11. Bxd4 {[%emt 0:00:10]} e5 {[%emt 0:00:08]} 12. Be3 {[%emt 0:00:23]} Rc8 {[%emt 0:00:10]} 13. f4 {[%emt 0:04:29]} Be7 {[%emt 0:01:26][%cal Oc8c3]} 14. O-O-O {[%emt 0:01:58] [#]} Rxc3 $146 {[%emt 0:01:09]} ({Predecessor:} 14... Qa5 15. Kb1 Rxc3 16. Bd2 Rxc2 17. Kxc2 Qxa2 18. Rb1 O-O 19. Bc3 Rc8 20. Ra1 Ba4+ {0-1 Stean,M-Hartston,W BBC TV Master Game 1975 (1.2)}) 15. bxc3 {[%emt 0:00:06]} Qc7 {[%emt 0:00:12]} 16. Kb2 {[%emt 0:04:41]} (16. c4 $1 $11) 16... Be6 $15 {[%emt 0:03:14]} 17. Ra1 {[%emt 0:31:42]} (17. g5 $1 $15 hxg5 18. fxg5) 17... d5 {[%emt 0:08:42]} ({Better is} 17... exf4 $19 18. Bxf4 Nd7) 18. a4 $1 {[%emt 0:01:16]} (18. f5 Ba3+ 19. Kb3 Qa5) 18... exf4 {[%emt 0:06:41]} (18... dxe4 19. fxe5 Bc4 20. Qf2 Qxe5 21. Qf4 Qxf4 22. Bxf4 $11) 19. Bd4 {[%emt 0:01:16]} dxe4 {[%emt 0:03:00]} 20. Bxe4 {[%emt 0:00:29]} O-O {[%emt 0:00:27]} 21. Bf5 {[%emt 0:01:15]} Bd5 {[%emt 0:04:33]} (21... Bxf5 $15 22. gxf5 Bc5) 22. Rhe1 $11 {[%emt 0:01:00]} Bc5 {[%emt 0:04:03]} 23. Bxc5 {[%emt 0:01:53]} Qxc5 {[%emt 0:00:08]} 24. Qe7 {[%emt 0:00:08]} Qc6 {[%emt 0:01:36]} 25. h4 {[%emt 0:03:37] Hoping for g5. Chess con chili. Active counter play!} Bc4 {[%emt 0:04:50]} 26. g5 {[%emt 0:09:45]} Nd5 {[%emt 0:00:24]} 27. Bh7+ {[%emt 0:00:05][%mdl 64] Deflection} Kxh7 {[%emt 0:00:04]} 28. Qxf8 {[%emt 0:00:02] And now gxh6 would win.} Qb6+ {[%emt 0:00:14]} (28... Bb3 $1 $11 {remains equal.} 29. cxb3 (29. Kxb3 $2 Qxc3+ 30. Ka2 Qxc2+ 31. Ka3 Qc3+ 32. Ka2 Nb4+ $19) 29... Qxc3+ 30. Ka3 Ne3 31. Qxf7 Nc2+ 32. Ka2 Nb4+ 33. Ka3 Nc2+ 34. Ka2 Nb4+ 35. Ka3 Nc2+) 29. Kc1 $16 {[%emt 0:00:11]} Nxc3 {[%emt 0:13:57] ...f3 would be deadly.} (29... Qf2 $2 30. g6+ (30. Re8 Ne3 $17) 30... Kxg6 31. h5+ Kxh5 32. Qxf7+ Kg4 33. Qxg7+ (33. Qg6+ Kf3 $18) 33... Kf3 34. Qe5 $18) 30. gxh6 {[%emt 0:03:28]} Qxh6 {[%emt 0:00:11] [#]} (30... gxh6 $142 31. Ra3 Na2+ 32. Rxa2 Bxa2) 31. Qc5 $1 {[%emt 0:01:34]} ({Not} 31. Re8 $2 Ne2+ 32. Kd2 f3+ 33. Re3 Ng3 $19) 31... Ne2+ $2 {[%emt 0:01:06] [#]} (31... b5 $16) 32. Rxe2 $1 {[%emt 0:02:22][%mdl 512]} Bxe2 $11 {[%emt 0:00:05] The position is equal.} 33. Qf5+ {[%emt 0:00:22]} Kg8 {[%emt 0:00:19] Strongly threatening ...f3+.} (33... Kh8 $5 34. Qc8+ $8 Kh7 35. Qf5+ Kh8 36. Qc8+ Kh7 37. Qf5+ $11) 34. Qc8+ {[%emt 0:00:26]} Kh7 {[%emt 0:00:07]} 35. Qf5+ {[%emt 0:00:08]} Kg8 {[%emt 0:00:05] ...f3+ is the strong threat.} 36. Qc8+ {[%emt 0:00:11] An exciting game.   Weighted Error Value: White=0.27 (precise) /Black=0.27 (precise)} 1/2-1/2

[Event "9th Floripa Open 2023"]
[Site "Florianopolis"]
[Date "2023.01.27"]
[Round "7.5"]
[White "Rodrigues, Edgar"]
[Black "Mekhitarian, Krikor Sevag"]
[Result "1/2-1/2"]
[ECO "C45"]
[WhiteElo "2299"]
[BlackElo "2551"]
[Annotator "TA"]
[PlyCount "82"]
[EventDate "2023.01.23"]
[EventType "swiss"]
[EventCountry "BRA"]
[SourceTitle "playchess.com"]
[Source "ChessBase"]
[SourceQuality "1"]
[TimeControl "5400+30"]

{[%evp 20,82,-16,-17,-22,-22,-19,-10,-14,-39,-27,-37,-32,-40,-33,-40,-25,-29,-31,-37,-19,-18,0,0,62,61,70,72,37,47,57,71,68,48,59,0,95,89,171,118,123,0,175,108,104,103,122,0,91,0,105,29,50,27,86,0,0,0,0,0,0,0,0,0,0]} 1. e4 {[%emt 0:00:03]} e5 {[%emt 0:05:01]} 2. Nf3 {[%emt 0:00:09]} Nc6 {[%emt 0:00:03]} 3. d4 {[%emt 0:00:08]} exd4 {[%emt 0:00:02]} 4. Nxd4 {[%emt 0:00:07]} Nf6 {[%emt 0:00:04][%cal Bg8f6,Bf6d5,Bd5b4,Bb4c6][%mdl 32]} 5. Nxc6 {[%emt 0:00:07]} bxc6 {[%emt 0:00:02]} 6. e5 {[%emt 0:00:08]} Qe7 {[%emt 0:00:03]} 7. Qe2 {[%emt 0:00:07]} Nd5 {[%emt 0:00:06]} 8. c4 {[%emt 0:00:07]} Ba6 {[%emt 0:01:53]} 9. b3 {[%emt 0:00:10]} g6 {[%emt 0:00:32]} 10. Bb2 {[%emt 0:00:37] Recently 10.Ba3 got a lot of attention.} Bg7 {[%emt 0:00:29]} 11. Nd2 {[%emt 0:01:43]} Nb4 {[%emt 0:05:28] C45: Scotch Game.} 12. Nf3 {[%emt 0:00:29]} c5 {[%emt 0:04:08]} 13. g3 $1 {[%emt 0:01:15]} d5 {[%emt 0:00:28][%cal Bd7d5,Bd5d4][%mdl 32] Strongly threatening ...dxc4.} 14. a3 {[%emt 0:04:03]} Nc6 {[%emt 0:01:36]} 15. Bg2 $1 {[%emt 0:06:09]} O-O {[%emt 0:00:49] Threatens to win with ...Rab8.} 16. O-O {[%emt 0:00:20]} Rab8 {[%emt 0:03:38] [#]} 17. Qc2 $146 {[%emt 0:04:19][%cal Oc4d5]} ({Predecessor:} 17. Nd2 Rfd8 18. f4 Na5 19. f5 gxf5 20. Rxf5 Nxb3 21. Raf1 Nxd2 22. Rxf7 Qg5 23. R1f5 Qh6 24. Qg4 Rxb2 25. Rf8+ Rxf8 26. Bxd5+ Rf7 27. Rxf7 Qxh2+ {0-1 Petrosian,D (2490)-Grandelius,N (2476) Sarajevo Bosna op 40th 2010 (7)}) 17... d4 {[%emt 0:22:35]} 18. Rfe1 {[%emt 0:00:58]} Bc8 {[%emt 0:00:18]} 19. Nd2 {[%emt 0:01:52]} Bf5 {[%emt 0:03:51]} (19... Nxe5 20. f4 $16) 20. Qd1 {[%emt 0:01:24]} Rb6 {[%emt 0:15:06]} (20... Nxe5 $2 21. f4 $16) (20... Qd7 $5 {[%cal Rc6e5]}) 21. b4 {[%emt 0:13:21]} cxb4 {[%emt 0:01:38]} (21... Bxe5 $2 22. f4 $18) (21... Qd7 $11) 22. Bxc6 $14 {[%emt 0:00:29]} Rxc6 {[%emt 0:00:22]} 23. axb4 {[%emt 0:00:33] b5 is the strong threat.} Qxb4 {[%emt 0:26:56]} 24. Ba3 {[%emt 0:00:37]} Qc3 {[%emt 0:00:09] Hoping for ...Rb8.} 25. Bxf8 {[%emt 0:00:43]} Bxf8 {[%emt 0:00:02]} 26. Rc1 {[%emt 0:08:35]} (26. Rxa7 Bb4 27. Ra2 Kg7 $11) 26... Qb2 {[%emt 0:04:42]} 27. Qf3 {[%emt 0:03:36]} (27. Ne4 $14) 27... Ra6 {[%emt 0:01:51]} (27... Re6 $11 28. g4 Rxe5 29. gxf5 Qxd2 30. Rxe5 Qxc1+ 31. Kg2 Qg5+ 32. Kf1 (32. Qg3 Qf6 $11) 32... Qd2) 28. Ne4 $16 {[%emt 0:00:58]} Ra2 {[%emt 0:00:38]} (28... Kg7 $16) 29. Nf6+ {[%emt 0:03:58]} (29. Rb1 $18 Qc2 30. Nf6+ Kg7 31. Ne8+ (31. Rb8 Qc3 $14) 31... Kg8 32. Nf6+ (32. Nxc7 Qc3 $11) 32... Kg7 33. g4 (33. Rb8 Qc3 $11)) 29... Kg7 {[%emt 0:00:09]} 30. g4 {[%emt 0:04:43]} (30. Nh5+ $16 Kg8 31. Rcd1) 30... Be6 $2 {[%emt 0:00:10] [#]} (30... d3 $1 $11 31. Ne8+ (31. gxf5 d2 $11) 31... Kh8) 31. Rb1 {[%emt 0:01:25]} (31. Ne8+ $1 $18 Kg8 32. Rb1 (32. Nxc7 $2 {loses.} Bxg4 33. Qg3 d3 $19)) 31... Qc3 {[%emt 0:00:33]} 32. Ne8+ {[%emt 0:07:21]} Kg8 {[%emt 0:00:05]} (32... Kh8 $2 33. Qf6+ Kg8 34. Nxc7 Qxc4 35. Nxe6 Qxe6 36. h3 $18) 33. Nf6+ {[%emt 0:00:19]} Kg7 {[%emt 0:00:01]} 34. Ne8+ {[%emt 0:02:08]} Kg8 $1 {[%emt 0:00:04] [#]} (34... Kh8 $2 35. Qf6+ Kg8 36. Nxc7 Qxc4 37. Nxe6 Qxe6 38. h3 $18) 35. Qa8 {[%emt 0:05:47] Dancing on a razor blade.} (35. Qf4 $1 $16) 35... Qd2 {[%emt 0:01:28]} 36. Nf6+ {[%emt 0:01:31]} Kg7 {[%emt 0:00:01]} 37. Rf1 {[%emt 0:01:50]} ({White should try} 37. Qg2 $16) 37... Bxc4 $11 {[%emt 0:02:01] The position is equal.} 38. Ne8+ {[%emt 0:02:15]} Kg8 $1 {[%emt 0:00:18]} 39. Nf6+ {[%emt 0:00:10]} Kg7 {[%emt 0:00:00]} 40. Ne8+ {[%emt 0:00:45]} Kg8 $1 {[%emt 0:00:27]} 41. Nf6+ {[%emt 0:00:21]} Kg7 {[%emt 0:00:05] An interesting game.   Weighted Error Value: White=0.31/Black=0.19 (very precise)} 1/2-1/2